[Event "11th LCC Super Blitz 2019"]
[Site "London"]
[Date "2019.12.08"]
[Round "11.5"]
[White "Mortazavi, Ali"]
[Black "Klingher, Dominic"]
[Result "1-0"]
[ECO "C41"]
[WhiteElo "2333"]
[BlackElo "2071"]
[Annotator "NA"]
[PlyCount "53"]
[EventDate "2019.12.08"]
[EventType "swiss"]
[EventCountry "ENG"]
[SourceTitle "playchess.com"]
[Source "ChessBase"]
[SourceQuality "1"]
[TimeControl "180+2"]

1. Nf3 {[%emt 0:00:00]} d6 {[%emt 0:00:00]} 2. e4 {[%emt 0:00:01]} Nf6 {[%emt 0:00:00]} 3. Nc3 {[%emt 0:00:01]} Nbd7 {[%emt 0:00:01]} 4. d4 {[%emt 0:00:01]} e5 {[%emt 0:00:00]} 5. Bc4 Be7 6. a4 {[%emt 0:00:01]} c6 {[%emt 0:00:02]} 7. Ba2 {[%emt 0:00:01]} h6 {[%emt 0:00:01]} 8. a5 {[%emt 0:00:03]} Qc7 {[%emt 0:00:05]} 9. O-O {[%emt 0:00:01]} Nf8 {[%emt 0:00:11]} 10. b4 {[%emt 0:00:17]} g5 {[%emt 0:00:16]} 11. b5 {[%emt 0:00:03]} Ng6 {[%emt 0:00:05]} 12. a6 {[%emt 0:00:07]} g4 {[%emt 0:00:22]} 13. Ne1 {[%emt 0:00:03]} h5 {[%emt 0:00:04]} 14. axb7 {[%emt 0:00:02]} Bxb7 {[%emt 0:00:02]} 15. Rb1 {[%emt 0:00:15]} h4 {[%emt 0:00:14]} 16. Bg5 {[%emt 0:00:20]} g3 {[%emt 0:00:10]} 17. fxg3 {[%emt 0:00:13]} hxg3 {[%emt 0:00:30]} 18. Bxf6 {[%emt 0:00:02]} Rxh2 {[%emt 0:00:02]} 19. bxc6 {[%emt 0:00:12]} Bxc6 {[%emt 0:00:18]} 20. Nd5 {[%emt 0:00:05]} Bxd5 {[%emt 0:00:29]} 21. Bxd5 {[%emt 0:00:01]} Nf4 {[%emt 0:00:24]} 22. Rxf4 {[%emt 0:00:19]} exf4 {[%emt 0:00:02]} 23. Qg4 {[%emt 0:00:19]} Bxf6 {[%emt 0:00:10]} 24. Qg8+ {[%emt 0:00:14]} Kd7 {[%emt 0:00:05]} 25. Qxf7+ {[%emt 0:00:07]} Kc8 {[%emt 0:00:04]} 26. Be6+ {[%emt 0:00:03]} Kd8 {[%emt 0:00:07]} 27. Qf8# {[%emt 0:00:02]} 1-0

[Event "11th LCC Super Blitz 2019"]
[Site "London"]
[Date "2019.12.08"]
[Round "11.5"]
[White "Stepanyan, Henrik"]
[Black "Ignatovic, Ernest"]
[Result "1/2-1/2"]
[ECO "A53"]
[WhiteElo "2193"]
[BlackElo "1703"]
[Annotator "NA"]
[PlyCount "101"]
[EventDate "2019.12.08"]
[EventType "swiss"]
[EventCountry "ENG"]
[SourceTitle "playchess.com"]
[Source "ChessBase"]
[SourceQuality "1"]
[TimeControl "180+2"]

1. d4 {[%emt 0:00:00]} Nf6 {[%emt 0:00:00]} 2. c4 {[%emt 0:00:01]} d6 {[%emt 0:00:00]} 3. Nc3 {[%emt 0:00:02]} e5 {[%emt 0:00:00]} 4. d5 {[%emt 0:00:07]} Bf5 {[%emt 0:00:02]} 5. Nf3 {[%emt 0:00:05]} e4 {[%emt 0:00:18]} 6. Nd4 {[%emt 0:00:06]} Bg6 {[%emt 0:00:06]} 7. e3 {[%emt 0:00:02]} Be7 {[%emt 0:00:10]} 8. Be2 {[%emt 0:00:01]} O-O {[%emt 0:00:04]} 9. O-O {[%emt 0:00:03]} Nfd7 {[%emt 0:00:09]} 10. f4 {[%emt 0:00:05]} exf3 {[%emt 0:00:10]} 11. Bxf3 {[%emt 0:00:09]} Ne5 {[%emt 0:00:01]} 12. Be2 {[%emt 0:00:01]} Nbd7 {[%emt 0:00:15]} 13. Nf3 {[%emt 0:00:13]} Bf6 {[%emt 0:00:08]} 14. Kh1 {[%emt 0:00:13]} a5 {[%emt 0:00:06]} 15. Nb5 {[%emt 0:00:12]} Nc5 {[%emt 0:00:08]} 16. Nbd4 {[%emt 0:00:10]} Qd7 {[%emt 0:00:13]} 17. Nxe5 {[%emt 0:00:08]} Bxe5 {[%emt 0:00:07]} 18. Bg4 {[%emt 0:00:01]} Qe7 {[%emt 0:00:17]} 19. Bf5 {[%emt 0:00:16]} Qh4 {[%emt 0:00:04]} 20. Nf3 {[%emt 0:00:04]} Qxc4 {[%emt 0:00:18]} 21. Nxe5 {[%emt 0:00:23]} dxe5 {[%emt 0:00:01]} 22. Bxg6 {[%emt 0:00:01]} hxg6 {[%emt 0:00:04]} 23. b3 {[%emt 0:00:06]} Qe4 {[%emt 0:00:24]} 24. Ba3 {[%emt 0:00:09]} b6 {[%emt 0:00:22]} 25. Rc1 {[%emt 0:00:12]} Rad8 {[%emt 0:00:02]} 26. Bxc5 {[%emt 0:00:03]} bxc5 {[%emt 0:00:01]} 27. Rxc5 {[%emt 0:00:02]} Rd7 {[%emt 0:00:13]} 28. Qd2 {[%emt 0:00:09]} Rfd8 {[%emt 0:00:06]} 29. Rd1 {[%emt 0:00:00]} c6 {[%emt 0:00:04]} 30. Qxa5 {[%emt 0:00:10]} cxd5 {[%emt 0:00:02]} 31. Qe1 {[%emt 0:00:15]} d4 {[%emt 0:00:02]} 32. exd4 {[%emt 0:00:01]} Qxe1+ {[%emt 0:00:01]} 33. Rxe1 {[%emt 0:00:01]} exd4 {[%emt 0:00:01]} 34. Rd1 {[%emt 0:00:03]} d3 {[%emt 0:00:00]} 35. Kg1 {[%emt 0:00:01]} Ra8 {[%emt 0:00:01]} 36. a4 {[%emt 0:00:02]} Rb8 {[%emt 0:00:01]} 37. Rc3 {[%emt 0:00:00]} d2 {[%emt 0:00:01]} 38. Kf2 {[%emt 0:00:01]} Rb4 {[%emt 0:00:01]} 39. Ke2 {[%emt 0:00:01]} Re4+ {[%emt 0:00:00]} 40. Kf3 {[%emt 0:00:01]} Re1 {[%emt 0:00:02]} 41. Rxd2 {[%emt 0:00:19]} Rxd2 {[%emt 0:00:01]} 42. b4 {[%emt 0:00:01]} Rb1 {[%emt 0:00:01]} 43. b5 {[%emt 0:00:01]} Ra2 {[%emt 0:00:02]} 44. Rc4 {[%emt 0:00:01]} Rba1 {[%emt 0:00:02]} 45. b6 {[%emt 0:00:03]} Rxa4 {[%emt 0:00:01]} 46. Rc8+ {[%emt 0:00:01]} Kh7 {[%emt 0:00:02]} 47. b7 {[%emt 0:00:00]} R1a3+ {[%emt 0:00:04]} 48. Kf2 {[%emt 0:00:02]} Ra2+ {[%emt 0:00:01]} 49. Kf3 {[%emt 0:00:06]} R2a3+ {[%emt 0:00:01]} 50. Kf2 {[%emt 0:00:01]} Ra2+ {[%emt 0:00:03]} 51. Kf3 {[%emt 0:00:27]} 1/2-1/2

[Event "11th LCC Super Blitz 2019"]
[Site "London"]
[Date "2019.12.08"]
[Round "11.6"]
[White "Ratnesan, Ranesh"]
[Black "Kennedy, Craig"]
[Result "1-0"]
[ECO "A10"]
[WhiteElo "2213"]
[BlackElo "1899"]
[Annotator "NA"]
[PlyCount "57"]
[EventDate "2019.12.08"]
[EventType "swiss"]
[EventCountry "ENG"]
[SourceTitle "playchess.com"]
[Source "ChessBase"]
[SourceQuality "1"]
[TimeControl "180+2"]

1. Nf3 {[%emt 0:00:00]} e6 {[%emt 0:00:00]} 2. b3 {[%emt 0:00:02]} f5 {[%emt 0:00:02]} 3. Bb2 {[%emt 0:00:01]} Nf6 {[%emt 0:00:01]} 4. g3 {[%emt 0:00:03]} d5 {[%emt 0:00:02]} 5. Bg2 {[%emt 0:00:01]} Bd6 {[%emt 0:00:02]} 6. c4 {[%emt 0:00:03]} c6 {[%emt 0:00:03]} 7. d3 {[%emt 0:00:01]} O-O {[%emt 0:00:02]} 8. Nbd2 {[%emt 0:00:02]} Qe7 {[%emt 0:00:08]} 9. O-O {[%emt 0:00:07]} e5 {[%emt 0:00:03]} 10. c5 {[%emt 0:00:08]} Bc7 {[%emt 0:00:14]} 11. e4 {[%emt 0:00:13]} fxe4 {[%emt 0:00:04]} 12. dxe4 {[%emt 0:00:01]} d4 {[%emt 0:00:17]} 13. Qc2 {[%emt 0:00:10]} Na6 {[%emt 0:00:10]} 14. Rac1 {[%emt 0:00:09]} Bg4 {[%emt 0:00:06]} 15. Nh4 {[%emt 0:00:09]} Ba5 {[%emt 0:00:11]} 16. Nc4 {[%emt 0:00:13]} Bc7 {[%emt 0:00:19]} 17. h3 {[%emt 0:00:23]} Be6 {[%emt 0:00:04]} 18. Nd2 {[%emt 0:00:09]} Qd7 {[%emt 0:00:05]} 19. Kh2 {[%emt 0:00:01]} Rae8 {[%emt 0:00:09]} 20. a3 {[%emt 0:00:12]} Qf7 {[%emt 0:00:07]} 21. Rce1 {[%emt 0:00:08]} Bb8 {[%emt 0:00:11]} 22. b4 {[%emt 0:00:03]} Nc7 {[%emt 0:00:02]} 23. f4 {[%emt 0:00:07]} exf4 {[%emt 0:00:16]} 24. gxf4 {[%emt 0:00:01]} Nb5 {[%emt 0:00:02]} 25. e5 {[%emt 0:00:09]} Nh5 {[%emt 0:00:06]} 26. Be4 {[%emt 0:00:16]} g6 {[%emt 0:00:22]} 27. Nxg6 {[%emt 0:00:16]} hxg6 {[%emt 0:00:29]} 28. Bxg6 {[%emt 0:00:00]} Qg7 {[%emt 0:00:04]} 29. Bxh5 {[%emt 0:00:05]} 1-0

[Event "11th LCC Super Blitz 2019"]
[Site "London"]
[Date "2019.12.08"]
[Round "11.6"]
[White "Orlovska, Madara"]
[Black "Rowson, Jonathan"]
[Result "0-1"]
[ECO "B18"]
[WhiteElo "2072"]
[BlackElo "2561"]
[Annotator "ChessBase"]
[PlyCount "110"]
[EventDate "2019.12.08"]
[EventType "swiss"]
[EventCountry "ENG"]
[SourceTitle "playchess.com"]
[Source "ChessBase"]
[SourceQuality "1"]
[TimeControl "180+2"]

1. e4 {[%emt 0:00:00]} c6 {[%emt 0:00:00]} 2. d4 {[%emt 0:00:01]} d5 {[%emt 0:00:00]} 3. Nc3 {[%emt 0:00:01]} dxe4 {[%emt 0:00:01]} 4. Nxe4 {[%emt 0:00:01]} Bf5 {[%emt 0:00:01]} 5. Ng3 {[%emt 0:00:01]} Bg6 {[%emt 0:00:01]} 6. Bc4 {[%emt 0:00:01]} e6 {[%emt 0:00:04]} 7. N1e2 {[%emt 0:00:01]} Bd6 {[%emt 0:00:13]} 8. O-O {[%emt 0:00:07]} Ne7 {[%emt 0:00:07]} 9. Nf4 {[%emt 0:00:06]} O-O {[%emt 0:00:08]} 10. c3 {[%emt 0:00:10]} Bxf4 {[%emt 0:00:18]} 11. Bxf4 {[%emt 0:00:02]} Nd7 {[%emt 0:00:00]} 12. Re1 {[%emt 0:00:22]} Nb6 {[%emt 0:00:05]} 13. Bb3 {[%emt 0:00:02]} a5 {[%emt 0:00:07]} 14. Bc2 {[%emt 0:00:03]} a4 {[%emt 0:00:03]} 15. b3 {[%emt 0:00:09]} Nbd5 {[%emt 0:00:07]} 16. Bd2 {[%emt 0:00:01]} axb3 {[%emt 0:00:06]} 17. Bxg6 {[%emt 0:00:11]} hxg6 {[%emt 0:00:10]} 18. axb3 {[%emt 0:00:01]} Qb6 {[%emt 0:00:11]} 19. Qc2 {[%emt 0:00:07]} Nf6 {[%emt 0:00:07]} 20. h3 {[%emt 0:00:14]} Ra6 {[%emt 0:00:07]} 21. Rxa6 {[%emt 0:00:03]} Qxa6 {[%emt 0:00:01]} 22. Bf4 {[%emt 0:00:05]} Ra8 {[%emt 0:00:05]} 23. Bd6 {[%emt 0:00:01]} Nf5 {[%emt 0:00:25]} 24. Nxf5 {[%emt 0:00:02]} gxf5 {[%emt 0:00:01]} 25. c4 {[%emt 0:00:29]} Ne4 {[%emt 0:00:15]} 26. Be5 {[%emt 0:00:07]} Qa2 {[%emt 0:00:07]} 27. Re2 {[%emt 0:00:10]} Qa1+ {[%emt 0:00:31]} 28. Kh2 {[%emt 0:00:01]} f6 {[%emt 0:00:19]} 29. Bf4 {[%emt 0:00:05]} Qxd4 {[%emt 0:00:03]} 30. f3 {[%emt 0:00:07]} Nc3 {[%emt 0:00:07]} 31. Be3 {[%emt 0:00:00]} Qd6+ {[%emt 0:00:01]} 32. f4 {[%emt 0:00:07]} Nxe2 {[%emt 0:00:01]} 33. Qxe2 {[%emt 0:00:01]} Kf7 {[%emt 0:00:01]} 34. Qh5+ {[%emt 0:00:01]} Kg8 {[%emt 0:00:00]} 35. Qg6 {[%emt 0:00:01]} Rd8 {[%emt 0:00:04]} 36. Bb6 {[%emt 0:00:06]} Ra8 {[%emt 0:00:01]} 37. Be3 {[%emt 0:00:05]} Qe7 {[%emt 0:00:01]} 38. Qh5 {[%emt 0:00:15]} Rd8 {[%emt 0:00:01]} 39. Qe2 {[%emt 0:00:12]} Qd6 {[%emt 0:00:02]} 40. Qf2 {[%emt 0:00:04]} Qd3 {[%emt 0:00:03]} 41. Bb6 {[%emt 0:00:04]} Ra8 {[%emt 0:00:02]} 42. Qe1 {[%emt 0:00:11]} Kf7 {[%emt 0:00:01]} 43. Qh4 {[%emt 0:00:09]} Qxb3 {[%emt 0:00:02]} 44. Qh5+ {[%emt 0:00:01]} Kg8 {[%emt 0:00:03]} 45. c5 {[%emt 0:00:01]} Qd5 {[%emt 0:00:02]} 46. Qe2 {[%emt 0:00:05]} Ra2 {[%emt 0:00:02]} 47. Qf1 {[%emt 0:00:02]} Qe4 {[%emt 0:00:02]} 48. Bc7 {[%emt 0:00:02]} Kf7 {[%emt 0:00:01]} 49. h4 {[%emt 0:00:03]} Qd5 {[%emt 0:00:03]} 50. Bd6 {[%emt 0:00:02]} b5 {[%emt 0:00:01]} 51. h5 {[%emt 0:00:11]} b4 {[%emt 0:00:01]} 52. Kh3 {[%emt 0:00:02]} b3 {[%emt 0:00:03]} 53. g3 {[%emt 0:00:06]} Rc2 {[%emt 0:00:02]} 54. Qa6 {[%emt 0:00:01]} Qg2+ {[%emt 0:00:03]} 55. Kh4 {[%emt 0:00:01]} Qh2# {[%emt 0:00:01]} 0-1

[Event "11th LCC Super Blitz 2019"]
[Site "London"]
[Date "2019.12.08"]
[Round "11.6"]
[White "Onslow, Teddy"]
[Black "Phillips, David"]
[Result "0-1"]
[ECO "D00"]
[WhiteElo "1647"]
[BlackElo "1810"]
[Annotator "NA"]
[PlyCount "94"]
[EventDate "2019.12.08"]
[EventType "swiss"]
[EventCountry "ENG"]
[SourceTitle "playchess.com"]
[Source "ChessBase"]
[SourceQuality "1"]
[TimeControl "180+2"]

1. d4 {[%emt 0:00:00]} Nf6 {[%emt 0:00:01]} 2. Bf4 {[%emt 0:00:00]} d5 {[%emt 0:00:10]} 3. e3 {[%emt 0:00:01]} e6 {[%emt 0:00:05]} 4. Bd3 {[%emt 0:00:00]} c5 {[%emt 0:00:03]} 5. c3 {[%emt 0:00:01]} Nc6 {[%emt 0:00:02]} 6. Nd2 {[%emt 0:00:01]} Bd6 {[%emt 0:00:03]} 7. Bxd6 {[%emt 0:00:00]} Qxd6 {[%emt 0:00:02]} 8. f4 {[%emt 0:00:01]} h5 {[%emt 0:00:02]} 9. Ngf3 {[%emt 0:00:01]} cxd4 {[%emt 0:00:05]} 10. cxd4 {[%emt 0:00:01]} Bd7 {[%emt 0:00:05]} 11. Ne5 {[%emt 0:00:02]} Ne7 {[%emt 0:00:14]} 12. Ndf3 {[%emt 0:00:09]} Nf5 {[%emt 0:00:15]} 13. Bxf5 {[%emt 0:00:17]} exf5 {[%emt 0:00:03]} 14. Nxd7 {[%emt 0:00:12]} Qxd7 {[%emt 0:00:13]} 15. O-O {[%emt 0:00:01]} O-O {[%emt 0:00:10]} 16. Ne5 {[%emt 0:00:02]} Qb5 {[%emt 0:00:06]} 17. b3 {[%emt 0:00:29]} Rac8 {[%emt 0:00:03]} 18. Rc1 {[%emt 0:00:01]} g6 {[%emt 0:00:22]} 19. h3 {[%emt 0:00:59]} Ne4 {[%emt 0:00:09]} 20. Kh2 {[%emt 0:00:02]} Kg7 {[%emt 0:00:43]} 21. Rg1 {[%emt 0:00:59]} f6 {[%emt 0:00:27]} 22. Nd3 {[%emt 0:00:02]} Rxc1 {[%emt 0:00:06]} 23. Nxc1 {[%emt 0:00:02]} Rc8 {[%emt 0:00:03]} 24. Qd3 {[%emt 0:00:11]} Qa5 {[%emt 0:00:06]} 25. a4 {[%emt 0:00:14]} Rc3 {[%emt 0:00:07]} 26. Qb5 {[%emt 0:00:00]} Qxb5 {[%emt 0:00:04]} 27. axb5 {[%emt 0:00:00]} Rc7 {[%emt 0:00:01]} 28. Re1 {[%emt 0:00:03]} a6 {[%emt 0:00:00]} 29. bxa6 {[%emt 0:00:01]} bxa6 {[%emt 0:00:01]} 30. Kg1 {[%emt 0:00:01]} Rb7 {[%emt 0:00:01]} 31. Kf1 {[%emt 0:00:01]} Kf7 {[%emt 0:00:01]} 32. Ke2 {[%emt 0:00:01]} Ke6 {[%emt 0:00:00]} 33. Kd3 {[%emt 0:00:01]} Nf2+ {[%emt 0:00:01]} 34. Kc2 {[%emt 0:00:01]} Rc7+ {[%emt 0:00:01]} 35. Kb2 {[%emt 0:00:01]} Ne4 {[%emt 0:00:01]} 36. Nd3 {[%emt 0:00:05]} Kd6 {[%emt 0:00:03]} 37. Rc1 {[%emt 0:00:02]} Rxc1 {[%emt 0:00:06]} 38. Nxc1 {[%emt 0:00:02]} Nd2 {[%emt 0:00:01]} 39. Nd3 {[%emt 0:00:05]} Nf1 {[%emt 0:00:01]} 40. Nc5 {[%emt 0:00:01]} Nxe3 {[%emt 0:00:02]} 41. Nxa6 {[%emt 0:00:01]} Nxg2 {[%emt 0:00:01]} 42. b4 {[%emt 0:00:01]} Nxf4 {[%emt 0:00:01]} 43. b5 {[%emt 0:00:00]} Nxh3 {[%emt 0:00:04]} 44. Kb3 {[%emt 0:00:01]} f4 {[%emt 0:00:01]} 45. Kb4 {[%emt 0:00:01]} f3 {[%emt 0:00:01]} 46. Ka5 {[%emt 0:00:02]} f2 {[%emt 0:00:01]} 47. b6 {[%emt 0:00:00]} Kc6 {[%emt 0:00:01]} 0-1

[Event "11th LCC Super Blitz 2019"]
[Site "London"]
[Date "2019.12.08"]
[Round "11.7"]
[White "Eames, Robert S"]
[Black "Zhao, Haolin"]
[Result "1-0"]
[ECO "B36"]
[WhiteElo "2166"]
[BlackElo "1725"]
[Annotator "NA"]
[PlyCount "117"]
[EventDate "2019.12.08"]
[EventType "swiss"]
[EventCountry "ENG"]
[SourceTitle "playchess.com"]
[Source "ChessBase"]
[SourceQuality "1"]
[TimeControl "180+2"]

1. e4 {[%emt 0:00:01]} c5 {[%emt 0:00:00]} 2. Nf3 {[%emt 0:00:01]} g6 {[%emt 0:00:01]} 3. c4 {[%emt 0:00:03]} Nc6 {[%emt 0:00:03]} 4. d4 {[%emt 0:00:00]} cxd4 {[%emt 0:00:00]} 5. Nxd4 {[%emt 0:00:02]} Nf6 {[%emt 0:00:01]} 6. Nc3 {[%emt 0:00:01]} Nxd4 {[%emt 0:00:02]} 7. Qxd4 {[%emt 0:00:02]} Bg7 {[%emt 0:00:02]} 8. Be2 {[%emt 0:00:08]} O-O {[%emt 0:00:03]} 9. Bg5 {[%emt 0:00:09]} d6 {[%emt 0:00:08]} 10. Qd2 {[%emt 0:00:03]} Bd7 {[%emt 0:00:11]} 11. O-O {[%emt 0:00:04]} Ne8 {[%emt 0:00:10]} 12. Nd5 {[%emt 0:00:13]} f6 {[%emt 0:00:03]} 13. Be3 {[%emt 0:00:13]} Nc7 {[%emt 0:00:02]} 14. Rfd1 {[%emt 0:00:10]} Nxd5 {[%emt 0:00:04]} 15. Qxd5+ {[%emt 0:00:16]} Kh8 {[%emt 0:00:07]} 16. f3 {[%emt 0:00:01]} Bc6 {[%emt 0:00:05]} 17. Qd2 {[%emt 0:00:03]} Qc7 {[%emt 0:00:03]} 18. Rac1 {[%emt 0:00:02]} b6 {[%emt 0:00:02]} 19. b4 {[%emt 0:00:03]} Bb7 {[%emt 0:00:17]} 20. c5 {[%emt 0:00:06]} dxc5 {[%emt 0:00:08]} 21. Qd7 {[%emt 0:00:18]} Rac8 {[%emt 0:00:11]} 22. bxc5 {[%emt 0:00:05]} bxc5 {[%emt 0:00:07]} 23. Rxc5 {[%emt 0:00:10]} Qxd7 {[%emt 0:00:06]} 24. Rxd7 {[%emt 0:00:02]} Bc6 {[%emt 0:01:04]} 25. Rxa7 {[%emt 0:00:17]} Rfe8 {[%emt 0:00:06]} 26. Kf2 {[%emt 0:00:12]} Bf8 {[%emt 0:00:02]} 27. Ra6 {[%emt 0:00:09]} Bd7 {[%emt 0:00:06]} 28. Rxc8 {[%emt 0:00:04]} Rxc8 {[%emt 0:00:04]} 29. Ra7 {[%emt 0:00:04]} Bc6 {[%emt 0:00:05]} 30. a4 {[%emt 0:00:05]} e5 {[%emt 0:00:11]} 31. a5 {[%emt 0:00:02]} f5 {[%emt 0:00:03]} 32. exf5 {[%emt 0:00:08]} gxf5 {[%emt 0:00:02]} 33. f4 {[%emt 0:00:06]} Bd6 {[%emt 0:00:02]} 34. fxe5 {[%emt 0:00:14]} Bxe5 {[%emt 0:00:01]} 35. Re7 {[%emt 0:00:03]} Bf6 {[%emt 0:00:03]} 36. Rf7 {[%emt 0:00:01]} Bg7 {[%emt 0:00:05]} 37. Rxf5 {[%emt 0:00:04]} Re8 {[%emt 0:00:04]} 38. Rf4 {[%emt 0:00:05]} Be5 {[%emt 0:00:01]} 39. Bd4 {[%emt 0:00:05]} Bxd4+ {[%emt 0:00:02]} 40. Rxd4 {[%emt 0:00:01]} Ra8 {[%emt 0:00:01]} 41. a6 {[%emt 0:00:03]} Be8 {[%emt 0:00:03]} 42. Rd6 {[%emt 0:00:07]} Bg6 {[%emt 0:00:03]} 43. Bf3 {[%emt 0:00:01]} Ra7 {[%emt 0:00:02]} 44. Ke3 {[%emt 0:00:02]} Kg7 {[%emt 0:00:05]} 45. Kd4 {[%emt 0:00:01]} Bb1 {[%emt 0:00:03]} 46. Kc5 {[%emt 0:00:01]} Bd3 {[%emt 0:00:03]} 47. Bb7 {[%emt 0:00:03]} Bxa6 {[%emt 0:00:05]} 48. Bxa6 {[%emt 0:00:03]} Rf7 {[%emt 0:00:02]} 49. Bc4 {[%emt 0:00:02]} Rf5+ {[%emt 0:00:01]} 50. Bd5 {[%emt 0:00:01]} Rf2 {[%emt 0:00:01]} 51. h3 {[%emt 0:00:02]} Rc2+ {[%emt 0:00:02]} 52. Kd4 {[%emt 0:00:01]} Re2 {[%emt 0:00:01]} 53. Be4 {[%emt 0:00:03]} Rd2+ {[%emt 0:00:02]} 54. Ke5 {[%emt 0:00:01]} Rf2 {[%emt 0:00:01]} 55. Bf3 {[%emt 0:00:02]} Kh8 {[%emt 0:00:02]} 56. Kf6 {[%emt 0:00:04]} h5 {[%emt 0:00:03]} 57. Kg6 {[%emt 0:00:02]} Rxf3 {[%emt 0:00:03]} 58. Rd8+ {[%emt 0:00:06]} Rf8 {[%emt 0:00:01]} 59. Rxf8# {[%emt 0:00:02]} 1-0

[Event "11th LCC Super Blitz 2019"]
[Site "London"]
[Date "2019.12.08"]
[Round "11.7"]
[White "Pappelis, Dimitrios"]
[Black "Kirupakaran, Vishnu"]
[Result "1-0"]
[ECO "B10"]
[WhiteElo "2160"]
[BlackElo "1871"]
[Annotator "NA"]
[PlyCount "23"]
[EventDate "2019.12.08"]
[EventType "swiss"]
[EventCountry "ENG"]
[SourceTitle "playchess.com"]
[Source "ChessBase"]
[SourceQuality "1"]
[TimeControl "180+2"]

1. c4 {[%emt 0:00:00]} Nf6 {[%emt 0:00:03]} 2. Nc3 {[%emt 0:00:01]} c6 {[%emt 0:00:06]} 3. e4 {[%emt 0:00:01]} e5 {[%emt 0:00:04]} 4. Nf3 {[%emt 0:00:01]} Qc7 {[%emt 0:00:11]} 5. d4 {[%emt 0:00:02]} exd4 {[%emt 0:00:03]} 6. Nxd4 {[%emt 0:00:01]} Bb4 {[%emt 0:00:02]} 7. Bd3 {[%emt 0:00:16]} d5 {[%emt 0:00:11]} 8. cxd5 {[%emt 0:00:16]} cxd5 {[%emt 0:00:02]} 9. O-O {[%emt 0:00:31]} dxe4 {[%emt 0:00:24]} 10. Qa4+ {[%emt 0:00:19]} Nc6 {[%emt 0:00:11]} 11. Nxc6 {[%emt 0:00:07]} Qxc6 {[%emt 0:00:03]} 12. Bb5 {[%emt 0:00:05]} 1-0

[Event "11th LCC Super Blitz 2019"]
[Site "London"]
[Date "2019.12.08"]
[Round "11.7"]
[White "Srivastava, Arnav"]
[Black "Royal, Shreyas"]
[Result "0-1"]
[ECO "E01"]
[WhiteElo "1728"]
[BlackElo "1941"]
[Annotator "NA"]
[PlyCount "78"]
[EventDate "2019.12.08"]
[EventType "swiss"]
[EventCountry "ENG"]
[SourceTitle "playchess.com"]
[Source "ChessBase"]
[SourceQuality "1"]
[TimeControl "180+2"]

1. c4 {[%emt 0:00:00]} e6 {[%emt 0:00:00]} 2. Nc3 {[%emt 0:00:01]} Nf6 {[%emt 0:00:00]} 3. d4 {[%emt 0:00:00]} d5 {[%emt 0:00:01]} 4. g3 {[%emt 0:00:02]} dxc4 {[%emt 0:00:05]} 5. Bg2 {[%emt 0:00:01]} Be7 {[%emt 0:00:01]} 6. Qa4+ {[%emt 0:00:04]} Nbd7 {[%emt 0:00:09]} 7. Qxc4 {[%emt 0:00:02]} c6 {[%emt 0:00:03]} 8. e4 {[%emt 0:00:02]} O-O {[%emt 0:00:02]} 9. Nf3 {[%emt 0:00:01]} Nb6 {[%emt 0:00:18]} 10. Qe2 {[%emt 0:00:03]} c5 {[%emt 0:00:06]} 11. dxc5 {[%emt 0:00:05]} Bxc5 {[%emt 0:00:01]} 12. O-O {[%emt 0:00:01]} h6 {[%emt 0:00:09]} 13. Be3 {[%emt 0:00:02]} Bxe3 {[%emt 0:00:04]} 14. Qxe3 {[%emt 0:00:02]} Qe7 {[%emt 0:00:00]} 15. Rfd1 {[%emt 0:00:03]} e5 {[%emt 0:00:10]} 16. Rac1 {[%emt 0:00:01]} Bg4 {[%emt 0:00:13]} 17. a3 {[%emt 0:00:24]} Rac8 {[%emt 0:00:22]} 18. Rd2 {[%emt 0:00:04]} Nc4 {[%emt 0:00:01]} 19. Qxa7 {[%emt 0:00:06]} Bxf3 {[%emt 0:00:02]} 20. Rd3 {[%emt 0:00:11]} Ra8 {[%emt 0:00:05]} 21. Qxa8 {[%emt 0:00:23]} Rxa8 {[%emt 0:00:01]} 22. Bxf3 {[%emt 0:00:01]} Nxb2 {[%emt 0:00:05]} 23. Rd2 {[%emt 0:00:05]} Nc4 {[%emt 0:00:02]} 24. Rdc2 {[%emt 0:00:05]} Nxa3 {[%emt 0:00:01]} 25. Ra2 {[%emt 0:00:01]} Qe8 {[%emt 0:00:13]} 26. Rca1 {[%emt 0:00:13]} Qe7 {[%emt 0:00:06]} 27. Nb5 {[%emt 0:00:03]} Qb4 {[%emt 0:00:05]} 28. Nxa3 {[%emt 0:00:06]} Nxe4 {[%emt 0:00:10]} 29. Kg2 {[%emt 0:00:25]} Nc3 {[%emt 0:00:06]} 30. Nc2 {[%emt 0:00:24]} Rxa2 {[%emt 0:00:03]} 31. Rxa2 {[%emt 0:00:02]} Qb3 {[%emt 0:00:05]} 32. Ra8+ {[%emt 0:00:01]} Kh7 {[%emt 0:00:01]} 33. Ne3 {[%emt 0:00:02]} e4 {[%emt 0:00:05]} 34. Bg4 {[%emt 0:00:03]} g6 {[%emt 0:00:04]} 35. Rb8 {[%emt 0:00:12]} h5 {[%emt 0:00:14]} 36. Bc8 {[%emt 0:00:01]} Nd1 {[%emt 0:00:08]} 37. Rxb7 {[%emt 0:00:16]} Nxe3+ {[%emt 0:00:02]} 38. fxe3 {[%emt 0:00:01]} Qc2+ {[%emt 0:00:01]} 39. Kh3 {[%emt 0:00:06]} Qxc8+ {[%emt 0:00:01]} 0-1